bitfinex-derivatives/quotes_BTCF0:USTF0_20240923
["timestamp","ask_amount","ask_price","bid_price","bid_amount"]
[1727124657213,0.4644018,63462.0,63461.0,0.190784]
[1727124657610,0.5431848,63462.0,63461.0,0.002]
[1727124660212,0.3856188,63462.0,63461.0,0.002]
[1727124660417,0.4644128,63462.0,63461.0,0.002]
[1727124660714,0.4644128,63462.0,63458.0,0.0037]
[1727124660715,0.078804,63459.0,63458.0,0.0037]
[1727124660906,0.078793,63454.0,63448.0,0.04702715]
[1727124661211,0.078802,63447.0,63445.0,0.078804]
[1727124661412,0.078802,63447.0,63446.0,0.11]
[1727124661717,0.3608,63449.0,63446.0,0.11]
[1727124662104,0.3608,63449.0,63446.0,0.188803]
[1727124662416,0.3608,63449.0,63447.0,0.078801]
[1727124662711,0.3608,63449.0,63446.0,0.11]
[1727124663216,0.3608,63449.0,63447.0,0.08914379]
[1727124663513,0.3608,63449.0,63448.0,0.08914379]
[1727124664721,0.3618,63449.0,63448.0,0.16849012]
[1727124665305,0.3618,63449.0,63448.0,0.07934633]
[1727124665512,0.3628,63449.0,63448.0,0.07934633]
[1727124665802,0.3628,63449.0,63448.0,0.001]
[1727124666006,0.3628,63449.0,63448.0,0.07934633]
[1727124666212,0.3618,63449.0,63448.0,0.07934633]
[1727124666412,0.3628,63449.0,63448.0,0.08034633]
[1727124667216,0.3628,63449.0,63448.0,0.0808]
[1727124671321,0.3628,63449.0,63448.0,0.10597933]
[1727124673011,0.002,63449.0,63448.0,0.10597933]
[1727124673212,0.3628,63449.0,63448.0,0.10597933]
[1727124674121,0.3628,63449.0,63448.0,0.0808]
[1727124676219,0.3628,63449.0,63448.0,0.14343551]
[1727124677024,0.002,63449.0,63448.0,0.14343551]
[1727124677322,0.3628,63449.0,63448.0,0.0808]
[1727124677517,0.441599,63449.0,63448.0,0.0808]
[1727124677719,0.441599,63449.0,63448.0,0.14346817]
[1727124677922,0.441599,63449.0,63448.0,0.25346817]
[1727124678122,0.441599,63449.0,63448.0,0.26914633]
[1727124678324,0.441599,63449.0,63448.0,0.1908]
[1727124678508,0.441599,63449.0,63448.0,0.0808]
[1727124680816,0.441599,63449.0,63448.0,0.1908]
[1727124681019,0.441599,63449.0,63448.0,0.35825644]
[1727124681316,0.441599,63449.0,63448.0,0.35828322]
[1727124681720,0.3628,63449.0,63448.0,0.35828322]
[1727124681920,0.3628,63449.0,63448.0,0.35825681]
[1727124682225,0.441599,63449.0,63448.0,0.27991048]
[1727124682433,0.441599,63449.0,63448.0,0.1908]
[1727124685117,0.441599,63449.0,63448.0,0.26917143]
[1727124686030,0.441599,63449.0,63448.0,0.35837168]
[1727124686225,0.441599,63449.0,63448.0,0.28000025]
[1727124686528,0.441599,63449.0,63448.0,0.35838967]
[1727124687128,0.441599,63449.0,63448.0,0.28000025]
[1727124688819,0.080799,63449.0,63448.0,0.28000025]
[1727124689025,0.441599,63449.0,63448.0,0.28000025]
[1727124689216,0.441599,63449.0,63448.0,0.37403795]
[1727124689834,0.080799,63449.0,63448.0,0.37403795]
[1727124690028,0.441599,63449.0,63448.0,0.37403795]
[1727124691726,0.441599,63449.0,63448.0,0.37419107]
[1727124693123,0.441599,63449.0,63448.0,0.1908]
[1727124696331,0.441599,63449.0,63448.0,0.002]
[1727124701130,0.441599,63449.0,63448.0,0.18542732]
[1727124702242,0.441599,63449.0,63448.0,0.09138962]
[1727124704737,0.441599,63449.0,63448.0,0.18565958]
[1727124704943,0.441599,63449.0,63448.0,0.09138962]
[1727124708130,0.441599,63449.0,63448.0,0.002]
[1727124708738,0.080799,63449.0,63448.0,0.002]
[1727124709245,0.441599,63449.0,63448.0,0.002]
[1727124709646,0.080799,63449.0,63448.0,0.002]
[1727124710049,0.441599,63449.0,63448.0,0.002]
[1727124714862,0.441599,63449.0,63448.0,0.0808]
[1727124715349,0.551599,63449.0,63448.0,0.0808]
[1727124716247,0.551599,63449.0,63448.0,0.17020793]
[1727124716453,0.551599,63449.0,63448.0,0.26451429]
[1727124718945,0.551599,63449.0,63448.0,0.17020793]
[1727124720247,0.441599,63449.0,63448.0,0.17020793]
[1727124720858,0.441599,63449.0,63448.0,0.17022885]
[1727124723250,0.441599,63449.0,63448.0,0.0808]
[1727124728453,0.3628,63449.0,63448.0,0.2696]
[1727124728657,0.3628,63449.0,63448.0,0.52805631]
[1727124728959,0.0037,63454.0,63453.0,0.078794]
[1727124729156,0.078788,63458.0,63457.0,0.078789]
[1727124729360,0.38556032,63459.0,63456.0,0.06280526]
[1727124729555,0.07879,63456.0,63455.0,0.06280526]
[1727124730056,0.07879,63456.0,63454.0,0.06280526]
[1727124730467,0.07879,63456.0,63454.0,0.078792]
[1727124731265,0.07879,63456.0,63455.0,0.08904103]
[1727124731763,0.07879,63456.0,63455.0,0.24633619]
[1727124731963,0.07879,63456.0,63455.0,0.15729516]
[1727124732183,0.07879,63456.0,63455.0,0.24636806]
[1727124732383,0.07879,63456.0,63455.0,0.24736806]
[1727124732786,0.07879,63456.0,63455.0,0.24836806]
[1727124734278,0.07879,63456.0,63455.0,0.24834793]
[1727124734479,0.07879,63456.0,63455.0,0.15929516]
[1727124734782,0.07879,63456.0,63455.0,0.2483242]
[1727124735387,0.07879,63456.0,63455.0,0.15929516]
[1727124735583,0.07879,63456.0,63455.0,0.24832574]
[1727124735890,0.07879,63456.0,63455.0,0.080792]
[1727124746691,0.07879,63456.0,63455.0,0.12787953]
[1727124747083,0.07879,63456.0,63455.0,0.002]
[1727124748191,0.07879,63456.0,63455.0,0.04908753]
[1727124748394,0.07879,63456.0,63455.0,0.002]
[1727124748597,0.07879,63456.0,63455.0,0.04908753]
[1727124749695,0.07879,63456.0,63455.0,0.002]
[1727124751695,0.15758,63456.0,63455.0,0.002]
[1727124752097,0.23332844,63456.0,63455.0,0.002]
[1727124753396,0.20778,63456.0,63455.0,0.06478338]
[1727124755298,0.20778,63456.0,63455.0,0.002]
[1727124755505,0.20778,63456.0,63455.0,0.06481617]
[1727124768300,0.23332847,63456.0,63455.0,0.002]
[1727124768704,0.23332872,63456.0,63455.0,0.002]
[1727124771511,0.157594,63451.0,63447.0,0.06651617]
[1727124771707,0.157594,63451.0,63442.0,0.131608]
[1727124771708,0.078804,63445.0,63444.0,0.0037]
[1727124771908,0.078806,63443.0,63442.0,0.0528]
[1727124772911,0.188806,63443.0,63442.0,0.0528]
[1727124773111,0.188806,63443.0,63442.0,0.131608]
[1727124774821,0.189806,63443.0,63442.0,0.131608]
[1727124776018,0.21498497,63443.0,63442.0,0.131608]
[1727124776421,0.21498497,63443.0,63442.0,0.21011116]
[1727124776724,0.57578497,63443.0,63442.0,0.21011116]
[1727124777911,0.46578497,63443.0,63442.0,0.21011116]
[1727124778617,0.46578497,63443.0,63442.0,0.131608]
[1727124778920,0.46578497,63443.0,63442.0,0.21011116]
[1727124779326,0.46578497,63443.0,63442.0,0.131608]
[1727124780322,0.46578497,63443.0,63442.0,0.21011116]
[1727124781020,0.46578497,63443.0,63442.0,0.29901063]
[1727124783519,0.46578497,63443.0,63442.0,0.131608]
[1727124791531,0.46578497,63443.0,63442.0,0.078808]
[1727124793336,0.46578497,63443.0,63442.0,0.15731116]
[1727124794529,0.46578497,63443.0,63442.0,0.24614024]
[1727124794744,0.10498497,63443.0,63442.0,0.24614024]
[1727124794932,0.46578497,63443.0,63442.0,0.24614024]
[1727124796638,0.46578497,63443.0,63442.0,0.16734981]
[1727124797340,0.46578497,63443.0,63442.0,0.07851413]
[1727124798440,0.078809,63441.0,63440.0,0.14163173]
[1727124799336,0.078809,63441.0,63440.0,0.078809]
[1727124799543,0.078809,63441.0,63440.0,0.14164284]
[1727124799843,0.079809,63441.0,63440.0,0.14164284]
[1727124800040,0.189809,63441.0,63440.0,0.06283384]
[1727124800241,0.189809,63441.0,63435.0,0.062866]
[1727124800437,0.078818,63434.0,63433.0,0.0037]
[1727124800630,0.078819,63433.0,63432.0,0.06286478]
[1727124800830,0.157638,63433.0,63432.0,0.06286478]
[1727124801025,0.15764,63432.0,63431.0,0.06286478]
[1727124801230,0.15764,63432.0,63426.0,0.0037]
[1727124801231,0.078821,63431.0,63430.0,0.06286478]
[1727124801432,0.072821,63431.0,63430.0,0.06286478]
[1727124801632,0.078823,63430.0,63429.0,0.06522945]
[1727124801841,0.439623,63430.0,63429.0,0.06522945]
[1727124802545,0.439623,63430.0,63429.0,0.00236467]
[1727124802947,0.074823,63430.0,63429.0,0.00236467]
[1727124803146,0.435623,63430.0,63429.0,0.00236467]
[1727124803644,0.434623,63430.0,63429.0,0.00336467]
[1727124804329,0.434623,63430.0,63429.0,0.00536467]
[1727124809734,0.544623,63430.0,63429.0,0.00536467]
[1727124810544,0.434623,63430.0,63429.0,0.00536467]
[1727124810748,0.3608,63430.0,63429.0,0.36188341]
[1727124810932,0.3608,63430.0,63429.0,0.28336928]
[1727124811133,0.3608,63430.0,63429.0,0.19418867]
[1727124811338,0.3608,63430.0,63429.0,0.28330934]
[1727124814839,0.3645,63436.0,63435.0,0.078816]
[1727124815050,0.3608,63436.0,63435.0,0.078816]
[1727124816448,0.3648,63436.0,63435.0,0.078816]
[1727124816862,0.3698,63436.0,63435.0,0.078816]
[1727124819441,0.3698,63436.0,63435.0,0.10343888]
[1727124819646,0.3698,63436.0,63435.0,0.18189464]
[1727124820143,0.3698,63436.0,63435.0,0.10343888]
[1727124820648,0.3698,63436.0,63435.0,0.18189464]
[1727124821269,0.3698,63436.0,63435.0,0.27089485]
[1727124823148,0.3698,63436.0,63435.0,0.19243909]
[1727124825252,0.3698,63436.0,63435.0,0.16781621]
[1727124825870,0.3698,63436.0,63435.0,0.16797932]
[1727124827454,0.3698,63436.0,63435.0,0.19292208]
[1727124832367,0.3698,63436.0,63435.0,0.16797932]
[1727124832751,0.448615,63436.0,63435.0,0.16797932]
[1727124834168,0.078818,63434.0,63433.0,0.07859461]
[1727124834357,0.078819,63433.0,63428.0,0.09426137]
[1727124834566,0.11,63430.0,63429.0,0.0893384]
[1727124834756,0.188823,63430.0,63429.0,0.0893384]
[1727124835571,0.075825,63428.0,63427.0,0.09426137]
[1727124835759,0.436625,63428.0,63427.0,0.18307943]
[1727124836470,0.433625,63428.0,63427.0,0.18307943]
[1727124837166,0.433625,63428.0,63427.0,0.18607943]
[1727124838573,0.433625,63428.0,63427.0,0.19007943]
[1727124838767,0.45849057,63428.0,63427.0,0.09581806]
[1727124843560,0.45849057,63428.0,63427.0,0.007]
[1727124843866,0.45849057,63428.0,63427.0,0.09577761]
[1727124845168,0.09769057,63428.0,63427.0,0.09577761]
[1727124845666,0.45849057,63428.0,63427.0,0.09577761]
[1727124847371,0.09769057,63428.0,63427.0,0.09577761]
[1727124847562,0.45849057,63428.0,63427.0,0.09577761]
[1727124852471,0.45849057,63428.0,63427.0,0.09630029]
[1727124852677,0.45849057,63428.0,63427.0,0.007]
[1727124853577,0.09769057,63428.0,63427.0,0.007]
[1727124853773,0.45849057,63428.0,63427.0,0.007]
[1727124856780,0.09769057,63428.0,63427.0,0.007]
[1727124856968,0.45849057,63428.0,63427.0,0.007]
[1727124859071,0.45849057,63428.0,63427.0,0.09631457]
[1727124860379,0.45849057,63428.0,63427.0,0.19066311]
[1727124860786,0.09769057,63428.0,63427.0,0.19066311]
[1727124861082,0.45849057,63428.0,63427.0,0.19066311]
[1727124861465,0.45849057,63428.0,63427.0,0.09631457]
[1727124861679,0.53731557,63428.0,63427.0,0.09631457]
[1727124864182,0.54231557,63428.0,63427.0,0.003]
[1727124864777,0.54531557,63428.0,63427.0,0.004]
[1727124864979,0.55031557,63428.0,63427.0,0.001]
[1727124865672,0.55231557,63428.0,63427.0,0.002]
[1727124872881,0.66231557,63428.0,63427.0,0.002]
[1727124874888,0.448625,63428.0,63427.0,0.15952989]
[1727124875085,0.448625,63428.0,63427.0,0.17027375]
[1727124878192,0.3758,63428.0,63427.0,0.17027375]
[1727124878581,0.3758,63428.0,63427.0,0.3300077]
[1727124878888,0.3758,63428.0,63427.0,0.30536053]
[1727124879095,0.3758,63428.0,63427.0,0.33000755]
[1727124880686,0.3688,63428.0,63427.0,0.43591542]
[1727124880888,0.3748,63428.0,63427.0,0.43691542]
[1727124881489,0.3748,63428.0,63427.0,0.33000755]
[1727124881697,0.014,63428.0,63427.0,0.33000755]
[1727124881997,0.014,63428.0,63427.0,0.43704817]
[1727124882396,0.0037,63434.0,63433.0,0.157638]
[1727124882600,0.0037,63441.0,63433.0,0.26283289]
[1727124882900,0.0037,63441.0,63435.0,0.11]
[1727124883106,0.0285235,63442.0,63436.0,0.21341747]
[1727124883304,0.0285235,63442.0,63437.0,0.11401747]
[1727124884201,0.0285235,63442.0,63437.0,0.19283147]
[1727124884586,0.0037,63442.0,63437.0,0.19283147]
[1727124884791,0.0037,63442.0,63437.0,0.19383147]
[1727124884992,0.0037,63442.0,63441.0,0.078809]
[1727124885204,0.0037,63445.0,63444.0,0.078805]
[1727124885399,0.10375617,63446.0,63445.0,0.078804]
[1727124885911,0.10375617,63446.0,63445.0,0.14164839]
[1727124886502,0.10375617,63446.0,63445.0,0.078804]
[1727124888402,0.10975617,63446.0,63445.0,0.079804]
[1727124888797,0.03095317,63446.0,63445.0,0.079804]
[1727124889794,0.03095317,63446.0,63445.0,0.080804]
[1727124892300,0.39175317,63446.0,63445.0,0.080804]
[1727124896209,0.3668,63446.0,63445.0,0.12787664]
[1727124898418,0.3668,63446.0,63445.0,0.080804]
[1727124903507,0.3668,63446.0,63445.0,0.14364839]
[1727124904004,0.3668,63446.0,63445.0,0.080804]
[1727124908614,0.3668,63446.0,63445.0,0.12787782]
[1727124909621,0.3668,63446.0,63445.0,0.080804]
[1727124909917,0.3668,63446.0,63445.0,0.12794777]
[1727124910519,0.3668,63446.0,63445.0,0.080804]
[1727124910831,0.445603,63446.0,63445.0,0.080804]
[1727124911014,0.3668,63446.0,63445.0,0.24836684]
[1727124911514,0.445603,63446.0,63445.0,0.1697838]
[1727124912325,0.445603,63446.0,63445.0,0.080804]
[1727124912512,0.445603,63446.0,63445.0,0.24861503]
[1727124913019,0.445603,63446.0,63445.0,0.16996609]
[1727124913708,0.445603,63446.0,63445.0,0.09116209]
[1727124918830,0.084803,63446.0,63445.0,0.09116209]
[1727124919026,0.445603,63446.0,63445.0,0.09116209]
[1727124922220,0.084803,63446.0,63445.0,0.09116209]
[1727124922420,0.445603,63446.0,63445.0,0.09116209]
[1727124924516,0.084803,63446.0,63445.0,0.09116209]
[1727124924724,0.445603,63446.0,63445.0,0.09116209]
[1727124926124,0.445603,63446.0,63445.0,0.06497931]
[1727124926526,0.445603,63446.0,63445.0,0.002]
[1727124931238,0.524406,63446.0,63445.0,0.002]
[1727124933334,0.524406,63446.0,63445.0,0.08072413]
[1727124933941,0.524406,63446.0,63445.0,0.002]
[1727124935731,0.885206,63446.0,63445.0,0.002]
[1727124937443,0.995206,63446.0,63445.0,0.002]
[1727124938339,0.806403,63446.0,63445.0,0.002]
[1727124938535,0.806403,63446.0,63445.0,0.0494]
[1727124938939,0.806403,63446.0,63445.0,0.21720217]
[1727124939840,0.806403,63446.0,63445.0,0.12812413]
[1727124940143,0.806403,63446.0,63445.0,0.21723251]
[1727124942943,0.806403,63446.0,63445.0,0.29603012]
[1727124943130,0.445603,63446.0,63445.0,0.21731238]
[1727124946138,0.445603,63446.0,63445.0,0.29603358]
[1727124946451,0.445603,63446.0,63445.0,0.21731238]
[1727124947745,0.445603,63446.0,63445.0,0.217305]
[1727124948250,0.445603,63446.0,63445.0,0.128204]
[1727124951746,0.445603,63446.0,63445.0,0.19119427]
[1727124953953,0.445603,63446.0,63445.0,0.128204]
[1727124956259,0.445603,63446.0,63445.0,0.21728977]
[1727124958345,0.445603,63446.0,63445.0,0.21725663]
[1727124960140,0.555603,63446.0,63445.0,0.09105263]
[1727124960554,0.555603,63446.0,63445.0,0.16980441]
[1727124963053,0.555603,63446.0,63445.0,0.08075178]
[1727124963255,0.555603,63446.0,63445.0,0.002]
[1727124971455,0.634406,63446.0,63445.0,0.08075178]
[1727124971652,0.078809,63441.0,63439.0,0.09448684]
[1727124971971,0.078815,63436.0,63435.0,0.09818684]
[1727124972160,0.188815,63436.0,63435.0,0.08947639]
[1727124972860,0.188815,63436.0,63430.0,0.09818684]
[1727124972861,0.078821,63431.0,63430.0,0.09818684]
[1727124973062,0.549621,63431.0,63430.0,0.18334519]
[1727124973276,0.549621,63431.0,63430.0,0.08885835]
[1727124973657,0.439621,63431.0,63430.0,0.08885835]
[1727124973953,0.439621,63431.0,63430.0,0.18334519]
[1727124974158,0.445621,63431.0,63430.0,0.08985835]
[1727124974864,0.445621,63431.0,63430.0,0.001]
[1727124975160,0.47019272,63431.0,63430.0,0.08969616]
[1727124975870,0.47419272,63431.0,63430.0,0.09069616]
[1727124980865,0.47419272,63431.0,63430.0,0.09068134]
[1727124982163,0.47419272,63431.0,63430.0,0.09065152]
[1727124982373,0.47419272,63431.0,63430.0,0.002]
[1727124982559,0.47419272,63431.0,63430.0,0.0906736]
[1727124982756,0.47419272,63431.0,63430.0,0.002]
[1727124985262,0.58419272,63431.0,63430.0,0.002]
[1727124988079,0.66301372,63431.0,63430.0,0.002]
[1727124988278,0.66301372,63431.0,63430.0,0.02764764]
[1727124988279,0.74183472,63431.0,63430.0,0.02764764]
[1727124988480,0.74183472,63431.0,63427.0,0.04720899]
[1727124988481,0.157648,63429.0,63427.0,0.04720899]
[1727124988775,0.078828,63426.0,63425.0,0.04721519]
[1727124988976,0.267656,63426.0,63425.0,0.04721519]
[1727124989276,0.267656,63426.0,63424.0,0.04721519]
[1727124989277,0.157658,63425.0,63424.0,0.04721519]
[1727124989579,0.266658,63425.0,63424.0,0.04721519]
[1727124990273,0.07883,63424.0,63423.0,0.04721519]
[1727124991981,0.43963,63424.0,63423.0,0.04721519]
[1727124992170,0.078831,63423.0,63422.0,0.04958028]
[1727124992474,0.078831,63423.0,63422.0,0.00236509]
[1727124993275,0.079831,63423.0,63422.0,0.00236509]
[1727124994277,0.081831,63423.0,63422.0,0.00236509]
[1727125000887,0.081831,63423.0,63422.0,0.08119809]
[1727125001492,0.081831,63423.0,63422.0,0.19119809]
[1727125001493,0.003,63423.0,63422.0,0.19119809]
[1727125003885,0.003,63423.0,63422.0,0.3585641]
[1727125005302,0.003,63423.0,63422.0,0.27989594]
[1727125009892,0.003,63423.0,63422.0,0.27990886]
[1727125012096,0.10408153,63435.0,63428.0,0.078825]
[1727125012297,0.0037,63434.0,63428.0,0.65393539]
[1727125012601,0.10408153,63435.0,63434.0,0.078818]
[1727125014891,0.11108153,63435.0,63434.0,0.079818]
[1727125015191,0.11208153,63435.0,63434.0,0.080818]
[1727125015395,0.008,63435.0,63434.0,0.441618]
[1727125023796,0.086816,63435.0,63434.0,0.441618]
[1727125024996,0.086816,63435.0,63434.0,0.080818]
[1727125038704,0.086816,63435.0,63434.0,0.12806762]
[1727125039201,0.086816,63435.0,63434.0,0.080818]
[1727125041001,0.086816,63435.0,63434.0,0.002]
[1727125046118,0.078824,63429.0,63427.0,0.08238241]
[1727125046317,0.157662,63423.0,63422.0,0.07868241]
[1727125046504,0.599125,63428.0,63419.0,0.3608]
[1727125046505,0.078833,63422.0,63419.0,0.3608]
[1727125046707,0.493705,63428.0,63420.0,0.18362105]
[1727125046708,0.078834,63421.0,63420.0,0.18362105]
[1727125047111,0.188834,63421.0,63420.0,0.18362105]
[1727125047304,0.188834,63421.0,63420.0,0.08902594]
[1727125047825,0.078834,63421.0,63420.0,0.29362105]
[1727125048214,0.078834,63421.0,63420.0,0.20002594]
[1727125051521,0.078829,63425.0,63420.0,0.20002594]
[1727125051716,0.078829,63425.0,63424.0,0.11]
[1727125051901,0.078829,63425.0,63424.0,0.18883]
[1727125052102,0.0037,63428.0,63427.0,0.078826]
[1727125052302,0.0043,63435.0,63430.0,0.078823]
[1727125052303,0.0037,63431.0,63430.0,0.078823]
[1727125052515,0.082519,63433.0,63430.0,0.27739132]
[1727125052516,0.078819,63433.0,63430.0,0.27739132]
[1727125052718,0.078819,63433.0,63432.0,0.07869719]
[1727125052917,0.078819,63433.0,63432.0,0.16726551]
[1727125053510,0.078819,63433.0,63432.0,0.07869719]
[1727125053818,0.086819,63433.0,63432.0,0.07969719]
[1727125054618,0.088819,63433.0,63432.0,0.08069719]
[1727125055715,0.167639,63433.0,63432.0,0.08069719]
[1727125055923,0.167639,63433.0,63432.0,0.002]
[1727125059046,0.167639,63433.0,63432.0,0.06497532]
[1727125059215,0.167639,63433.0,63432.0,0.002]
[1727125059615,0.167639,63433.0,63432.0,0.0649766]
[1727125060708,0.167639,63433.0,63432.0,0.002]
[1727125063115,0.528439,63433.0,63432.0,0.002]
[1727125066321,0.157646,63430.0,63429.0,0.0629766]
[1727125066512,0.157646,63430.0,63428.0,0.04724165]
[1727125066513,0.188823,63430.0,63428.0,0.04724165]
[1727125066719,0.078825,63428.0,63427.0,0.04724165]
[1727125067630,0.15565,63428.0,63427.0,0.04724165]
[1727125068831,0.51645,63428.0,63427.0,0.04724165]
[1727125069038,0.157652,63427.0,63426.0,0.04724165]
[1727125069342,0.266652,63427.0,63426.0,0.04724165]
[1727125069529,0.265652,63427.0,63426.0,0.04724165]
[1727125070321,0.276652,63427.0,63426.0,0.04724165]
[1727125070518,0.355478,63427.0,63426.0,0.04724165]
[1727125070714,0.355478,63427.0,63423.0,0.0629766]
[1727125070715,0.15766,63424.0,63423.0,0.0629766]
[1727125071026,0.11,63424.0,63421.0,0.0629766]
[1727125071325,0.4708,63422.0,63421.0,0.0629766]
[1727125072118,0.628466,63422.0,63421.0,0.0629766]
[1727125072323,0.549633,63422.0,63420.0,0.0629766]
[1727125072523,0.267668,63421.0,63420.0,0.0629766]
[1727125073229,0.078836,63419.0,63418.0,0.0285837]
[1727125073441,0.596308,63419.0,63418.0,0.0285837]
[1727125074821,0.596308,63419.0,63413.0,0.03623202]
[1727125074822,0.157684,63414.0,63413.0,0.03623202]
[1727125075025,0.267684,63414.0,63413.0,0.03623202]
[1727125075334,0.265684,63414.0,63413.0,0.03623202]
[1727125075920,0.265684,63414.0,63406.0,0.0037]
[1727125075921,0.11,63410.0,63406.0,0.0037]
[1727125076122,0.078855,63404.0,63403.0,0.00868839]
[1727125076331,0.26671,63404.0,63403.0,0.00498839]
[1727125076718,0.15671,63404.0,63403.0,0.00498839]
[1727125076922,0.26671,63404.0,63403.0,0.00498839]
[1727125077127,0.26471,63404.0,63403.0,0.00498839]
[1727125078328,0.31471,63404.0,63403.0,0.00498839]
[1727125078618,0.32471,63404.0,63403.0,0.00498839]
[1727125079032,0.31971,63404.0,63403.0,0.00498839]
[1727125079238,0.33171,63404.0,63403.0,0.00598839]
[1727125079731,0.32671,63404.0,63403.0,0.00598839]
[1727125079924,0.33771,63404.0,63403.0,0.00698839]
[1727125080533,0.258855,63404.0,63403.0,0.00698839]
[1727125080833,0.36256086,63404.0,63403.0,0.00698839]
[1727125081039,0.28370586,63404.0,63403.0,0.00698839]
[1727125081233,0.36256086,63404.0,63403.0,0.00698839]
[1727125084632,0.36256086,63404.0,63401.0,0.00417818]
[1727125084633,0.157712,63403.0,63401.0,0.00417818]
[1727125085938,0.100856,63403.0,63402.0,0.02476253]
[1727125089135,0.179712,63403.0,63402.0,0.02476253]
[1727125089653,0.100856,63403.0,63402.0,0.02476253]
[1727125089836,0.179712,63403.0,63402.0,0.02476253]
[1727125090239,0.179712,63403.0,63397.0,0.0219985]
[1727125090240,0.07886,63400.0,63397.0,0.0219985]
[1727125090448,0.022,63403.0,63392.0,0.02366274]
[1727125090449,0.157738,63393.0,63392.0,0.02366274]
[1727125091239,0.157742,63391.0,63388.0,0.00843496]
[1727125091942,0.156742,63391.0,63388.0,0.00843496]
[1727125092553,0.163742,63391.0,63390.0,0.0106793]
[1727125093448,0.163742,63391.0,63387.0,0.01431048]
[1727125093449,0.15775,63388.0,63387.0,0.01431048]
[1727125093756,0.67855,63388.0,63387.0,0.01431048]
[1727125094140,0.67755,63388.0,63387.0,0.01431048]
[1727125095053,0.68155,63388.0,63387.0,0.01431048]
[1727125095257,0.68555,63388.0,63387.0,0.01431048]
[1727125095858,0.606675,63388.0,63377.0,0.0147074]
[1727125096157,0.599682,63382.0,63377.0,0.0110074]
[1727125097555,0.599682,63382.0,63381.0,0.01343289]
[1727125098154,0.600682,63382.0,63381.0,0.01143289]
[1727125098457,0.600682,63382.0,63381.0,0.01343289]
[1727125099862,0.62583284,63382.0,63381.0,0.01343289]
[1727125100461,0.57583284,63382.0,63381.0,0.01343289]
[1727125102560,0.65471484,63382.0,63381.0,0.01343289]
[1727125104258,0.70471484,63382.0,63381.0,0.01343289]
[1727125104464,0.70471484,63382.0,63377.0,0.0110074]
[1727125104654,0.15779,63372.0,63371.0,0.00490018]
[1727125104962,0.51859,63372.0,63371.0,0.00490018]
[1727125105770,0.440695,63372.0,63371.0,0.00490018]
[1727125105954,0.51959,63372.0,63371.0,0.00490018]
[1727125107178,0.51559,63372.0,63371.0,0.00490018]
[1727125107853,0.51559,63372.0,63371.0,0.00890018]
[1727125110059,0.54013061,63372.0,63371.0,0.00890018]
[1727125111277,0.46123561,63372.0,63371.0,0.00890018]
[1727125112383,0.54013061,63372.0,63371.0,0.00890018]
[1727125115380,0.46123561,63372.0,63371.0,0.00890018]
[1727125115877,0.46523561,63372.0,63371.0,0.00890018]
[1727125116675,0.47023561,63372.0,63371.0,0.00590018]
[1727125117387,0.10943561,63372.0,63371.0,0.00590018]
[1727125119077,0.078898,63369.0,63366.0,0.0014116]
[1727125119275,0.238901,63367.0,63365.0,0.01753571]
[1727125119579,0.157804,63366.0,63365.0,0.01753571]
[1727125119769,0.157804,63366.0,63363.0,0.01308483]
[1727125119770,0.078905,63364.0,63363.0,0.01308483]
[1727125120667,0.15781,63364.0,63363.0,0.01308483]
[1727125120867,0.157814,63362.0,63361.0,0.01626208]
[1727125121171,0.314814,63362.0,63361.0,0.01017073]
[1727125121379,0.15782,63360.0,63359.0,0.01512828]
[1727125121674,0.51862,63360.0,63359.0,0.01512828]
[1727125122584,0.43971,63360.0,63359.0,0.01512828]
[1727125122879,0.43571,63360.0,63359.0,0.01512828]
[1727125123182,0.44471,63360.0,63359.0,0.01512828]
[1727125123777,0.45471,63360.0,63359.0,0.01512828]
[1727125124172,0.09391,63360.0,63359.0,0.01512828]
[1727125124771,0.17282,63360.0,63359.0,0.01512828]
[1727125125081,0.16682,63360.0,63359.0,0.01512828]
[1727125125279,0.17782,63360.0,63359.0,0.01512828]
[1727125126579,0.17682,63360.0,63359.0,0.01512828]
[1727125126776,0.09791,63360.0,63359.0,0.01512828]
[1727125127371,0.09891,63360.0,63359.0,0.01512828]
[1727125128679,0.09991,63360.0,63359.0,0.01512828]
[1727125130686,0.025,63360.0,63359.0,0.25403928]
[1727125130986,0.025,63360.0,63359.0,0.09403928]
[1727125131184,0.10391,63360.0,63359.0,0.01512828]
[1727125131485,0.10391,63360.0,63359.0,0.07810488]
[1727125132369,0.26391,63360.0,63359.0,0.01512828]
[1727125132574,0.34282,63360.0,63359.0,0.01512828]
[1727125133378,0.26391,63360.0,63359.0,0.01512828]
[1727125133686,0.025,63360.0,63359.0,0.09403928]
[1727125133879,0.025,63360.0,63359.0,0.01512828]
[1727125134084,0.10391,63360.0,63359.0,0.07809914]
[1727125134474,0.10391,63360.0,63359.0,0.01512828]
[1727125134675,0.18282,63360.0,63359.0,0.01512828]
[1727125136195,0.10391,63360.0,63359.0,0.01512828]
[1727125136580,0.12848655,63360.0,63359.0,0.01512828]
[1727125137894,0.20739655,63360.0,63359.0,0.01512828]
[1727125142788,0.12848655,63360.0,63359.0,0.01512828]
[1727125145198,0.12848655,63360.0,63359.0,0.43891434]
[1727125145507,0.12848655,63360.0,63359.0,0.07811434]
[1727125145801,0.20739655,63360.0,63359.0,0.07815679]
[1727125146097,0.25449655,63360.0,63359.0,0.01512828]
[1727125146591,0.17558655,63360.0,63359.0,0.01512828]
[1727125147202,0.12848655,63360.0,63359.0,0.01512828]
[1727125150103,0.10391,63360.0,63359.0,0.01512828]
[1727125150300,0.10391,63360.0,63359.0,0.10716497]
[1727125150504,0.0037,63365.0,63364.0,0.078905]
[1727125150706,0.078902,63366.0,63364.0,0.17094169]
[1727125151005,0.078902,63366.0,63365.0,0.09203669]
[1727125151204,0.238902,63366.0,63363.0,0.07884944]
[1727125151510,0.317804,63366.0,63365.0,0.06307967]
[1727125151692,0.252902,63366.0,63365.0,0.06307967]
[1727125153307,0.078903,63365.0,63364.0,0.06407967]
[1727125153495,0.157806,63365.0,63364.0,0.001]
[1727125153698,0.078903,63365.0,63360.0,0.06307967]